[Event "Titled Tuesday Blitz October 11 Early 2022"]
[White "Djokic, Mihailo"]
[Black "Onslow, Alfie"]
[WhiteFideId "976440"]
[BlackFideId "436976"]
[WhiteElo "2315"]
[BlackElo "2015"]
[Result "0-1"]
[Round "01"]
[TimeControl "180+1"]
[Date "2022.10.12"]
[WhiteClock "0:01:05"]
[BlackClock "0:00:08"]

1. e4 {[%clk 0:03:00]}  g6 {[%clk 0:02:59]} 2. d4 {[%clk 0:02:59]}  Bg7 {[%clk 0:03:00]} 3. Be3 {[%clk 0:02:59]}  c6 {[%clk 0:02:59]} 4. Nc3 {[%clk 0:02:59]}  d5 {[%clk 0:02:59]} 5. Nf3 {[%clk 0:03:00]}  dxe4 {[%clk 0:02:58]} 6. Nxe4 {[%clk 0:03:01]}  Nf6 {[%clk 0:02:58]} 7. Nxf6+ {[%clk 0:03:01]}  exf6 {[%clk 0:02:59]} 8. Qd2 {[%clk 0:02:57]}  O-O {[%clk 0:02:56]} 9. O-O-O {[%clk 0:02:49]}  Be6 {[%clk 0:02:55]} 10. Kb1 {[%clk 0:02:46]}  b5 {[%clk 0:02:50]} 11. h4 {[%clk 0:02:42]}  a5 {[%clk 0:02:46]} 12. h5 {[%clk 0:02:41]}  Qd5 {[%clk 0:02:40]} 13. b3 {[%clk 0:02:25]}  a4 {[%clk 0:02:39]} 14. hxg6 {[%clk 0:02:25]}  fxg6 {[%clk 0:02:35]} 15. Bh6 {[%clk 0:02:23]}  Rf7 {[%clk 0:02:31]} 16. Bxg7 {[%clk 0:02:22]}  Rxg7 {[%clk 0:02:30]} 17. Bd3 {[%clk 0:02:16]}  axb3 {[%clk 0:02:12]} 18. cxb3 {[%clk 0:02:14]}  Rga7 {[%clk 0:02:12]} 19. Qh6 {[%clk 0:02:06]}  b4 {[%clk 0:01:03]} 20. Rd2 {[%clk 0:01:49]}  Qxb3+ {[%clk 0:00:47]} 21. Kc1 {[%clk 0:01:41]}  Qc3+ {[%clk 0:00:41]} 22. Kd1 {[%clk 0:01:40]}  Bc4 {[%clk 0:00:11]} 23. Qe3 {[%clk 0:01:29]}  Bxd3 {[%clk 0:00:10]} 24. Rxd3 {[%clk 0:01:22]}  Qa1+ {[%clk 0:00:10]} 25. Qc1 {[%clk 0:01:21]}  Qxc1+ {[%clk 0:00:10]} 26. Kxc1 {[%clk 0:01:22]}  Rxa2 {[%clk 0:00:10]} 27. Nd2 {[%clk 0:01:20]}  Nd7 {[%clk 0:00:09]} 28. Kd1 {[%clk 0:01:14]}  Ra1+ {[%clk 0:00:09]} 29. Ke2 {[%clk 0:01:14]}  Rxh1 {[%clk 0:00:09]} 30. Rb3 {[%clk 0:01:12]}  Rh2 {[%clk 0:00:09]} 31. Kf3 {[%clk 0:01:12]}  Rb8 {[%clk 0:00:07]} 32. Kg3 {[%clk 0:01:11]}  Rh1 {[%clk 0:00:08]} 33. Ne4 {[%clk 0:01:11]}  Rd1 {[%clk 0:00:08]} 34. f3 {[%clk 0:01:07]}  Rxd4 {[%clk 0:00:09]} 35. Kf2 {[%clk 0:01:08]}  f5 {[%clk 0:00:09]} 36. Ng3 {[%clk 0:01:08]}  Rd2+ {[%clk 0:00:09]} 37. Ne2 {[%clk 0:01:07]}  Ra2 {[%clk 0:00:10]} 38. Ke3 {[%clk 0:01:08]}  Nc5 {[%clk 0:00:10]} 39. Rb1 {[%clk 0:01:07]}  b3 {[%clk 0:00:11]} 40. Nc3 {[%clk 0:01:07]}  Rc2 {[%clk 0:00:10]} 41. Kd4 {[%clk 0:01:08]}  b2 {[%clk 0:00:08]} 42. Rxb2 {[%clk 0:01:05]}  Rcxb2 {[%clk 0:00:08]} 0-1


[Site "https://www.chess.com"]

[Event "Titled Tuesday Blitz October 11 Early 2022"]
[White "Donchenko, Alexander"]
[Black "Horak, Martin"]
[WhiteFideId "24603295"]
[BlackFideId "367095"]
[WhiteElo "2572"]
[BlackElo "2091"]
[Result "0-1"]
[Round "01"]
[TimeControl "180+1"]
[Date "2022.10.11"]
[WhiteClock "0:01:09"]
[BlackClock "0:00:09"]

1. Nf3 {[%clk 0:03:00]}  Nf6 {[%clk 0:02:58]} 2. g3 {[%clk 0:03:01]}  d5 {[%clk 0:02:57]} 3. Bg2 {[%clk 0:03:01]}  c5 {[%clk 0:02:53]} 4. O-O {[%clk 0:03:01]}  e6 {[%clk 0:02:53]} 5. c4 {[%clk 0:03:01]}  Nc6 {[%clk 0:02:46]} 6. cxd5 {[%clk 0:03:01]}  Nxd5 {[%clk 0:02:46]} 7. d4 {[%clk 0:03:01]}  cxd4 {[%clk 0:02:32]} 8. Nxd4 {[%clk 0:03:02]}  Be7 {[%clk 0:02:32]} 9. Nxc6 {[%clk 0:03:01]}  bxc6 {[%clk 0:02:33]} 10. Qc2 {[%clk 0:03:01]}  Bb7 {[%clk 0:02:15]} 11. Rd1 {[%clk 0:03:00]}  Qc8 {[%clk 0:02:12]} 12. a3 {[%clk 0:02:55]}  O-O {[%clk 0:02:11]} 13. e4 {[%clk 0:02:55]}  Nb6 {[%clk 0:02:09]} 14. Nc3 {[%clk 0:02:52]}  Rd8 {[%clk 0:02:03]} 15. Bf4 {[%clk 0:02:49]}  Bc5 {[%clk 0:01:48]} 16. Rxd8+ {[%clk 0:02:42]}  Qxd8 {[%clk 0:01:49]} 17. Rd1 {[%clk 0:02:42]}  Qe8 {[%clk 0:01:38]} 18. b4 {[%clk 0:02:40]}  Be7 {[%clk 0:01:37]} 19. h4 {[%clk 0:02:24]}  Rd8 {[%clk 0:01:36]} 20. Be3 {[%clk 0:02:05]}  Rxd1+ {[%clk 0:01:29]} 21. Qxd1 {[%clk 0:02:05]}  Qd8 {[%clk 0:01:29]} 22. Qc2 {[%clk 0:02:01]}  Ba6 {[%clk 0:01:20]} 23. Bc5 {[%clk 0:01:54]}  Bxc5 {[%clk 0:01:12]} 24. bxc5 {[%clk 0:01:55]}  Nd7 {[%clk 0:00:56]} 25. Qa4 {[%clk 0:01:51]}  Nb8 {[%clk 0:00:48]} 26. e5 {[%clk 0:01:45]}  Qc7 {[%clk 0:00:43]} 27. Qd4 {[%clk 0:01:41]}  Nd7 {[%clk 0:00:32]} 28. f4 {[%clk 0:01:40]}  Bb7 {[%clk 0:00:20]} 29. Qd6 {[%clk 0:01:39]}  Qxd6 {[%clk 0:00:20]} 30. cxd6 {[%clk 0:01:38]}  f6 {[%clk 0:00:18]} 31. Bh3 {[%clk 0:01:31]}  Kf7 {[%clk 0:00:18]} 32. f5 {[%clk 0:01:31]}  exf5 {[%clk 0:00:11]} 33. Bxf5 {[%clk 0:01:32]}  Nxe5 {[%clk 0:00:10]} 34. Ne4 {[%clk 0:01:20]}  g6 {[%clk 0:00:08]} 35. Bh3 {[%clk 0:01:20]}  f5 {[%clk 0:00:06]} 36. Nc5 {[%clk 0:01:20]}  Bc8 {[%clk 0:00:07]} 37. Bf1 {[%clk 0:01:16]}  Nd7 {[%clk 0:00:07]} 38. Bc4+ {[%clk 0:01:14]}  Kf6 {[%clk 0:00:06]} 39. Nd3 {[%clk 0:01:11]}  Ne5 {[%clk 0:00:06]} 40. Nxe5 {[%clk 0:01:04]}  Kxe5 {[%clk 0:00:07]} 41. Bg8 {[%clk 0:01:04]}  h6 {[%clk 0:00:06]} 42. Kf2 {[%clk 0:00:58]}  Kxd6 {[%clk 0:00:04]} 43. Ke3 {[%clk 0:00:59]}  g5 {[%clk 0:00:04]} 44. Kd4 {[%clk 0:00:57]}  c5+ {[%clk 0:00:04]} 45. Ke3 {[%clk 0:00:57]}  Be6 {[%clk 0:00:04]} 46. Bh7 {[%clk 0:00:57]}  Ke5 {[%clk 0:00:04]} 47. Bg6 {[%clk 0:00:56]}  Bd5 {[%clk 0:00:04]} 48. hxg5 {[%clk 0:00:56]}  hxg5 {[%clk 0:00:04]} 49. Be8 {[%clk 0:00:57]}  f4+ {[%clk 0:00:04]} 50. gxf4+ {[%clk 0:00:57]}  gxf4+ {[%clk 0:00:05]} 51. Kf2 {[%clk 0:00:58]}  Be4 {[%clk 0:00:05]} 52. Bb5 {[%clk 0:00:58]}  Kd4 {[%clk 0:00:06]} 53. Ke2 {[%clk 0:00:59]}  c4 {[%clk 0:00:06]} 54. Kd2 {[%clk 0:00:59]}  c3+ {[%clk 0:00:07]} 55. Kc1 {[%clk 0:01:00]}  Ke3 {[%clk 0:00:06]} 56. a4 {[%clk 0:00:59]}  Bd3 {[%clk 0:00:06]} 57. Bc6 {[%clk 0:00:59]}  f3 {[%clk 0:00:07]} 58. a5 {[%clk 0:01:00]}  f2 {[%clk 0:00:07]} 59. Bg2 {[%clk 0:01:00]}  f1=Q+ {[%clk 0:00:08]} 60. Bxf1 {[%clk 0:01:00]}  Bxf1 {[%clk 0:00:08]} 61. Kc2 {[%clk 0:01:01]}  Kd4 {[%clk 0:00:09]} 62. a6 {[%clk 0:01:01]}  Bxa6 {[%clk 0:00:08]} 63. Kb3 {[%clk 0:01:02]}  Bc4+ {[%clk 0:00:09]} 64. Kc2 {[%clk 0:01:03]}  Bd5 {[%clk 0:00:08]} 65. Kc1 {[%clk 0:01:03]}  Be4 {[%clk 0:00:08]} 66. Kd1 {[%clk 0:01:04]}  Kc4 {[%clk 0:00:08]} 67. Kc1 {[%clk 0:01:05]}  Kb3 {[%clk 0:00:08]} 68. Kd1 {[%clk 0:01:06]}  Kb2 {[%clk 0:00:08]} 69. Ke2 {[%clk 0:01:06]}  c2 {[%clk 0:00:09]} 70. Ke3 {[%clk 0:01:07]}  c1=Q+ {[%clk 0:00:09]} 71. Kd4 {[%clk 0:01:08]}  Qc3+ {[%clk 0:00:09]} 72. Kxe4 {[%clk 0:01:08]}  a5 {[%clk 0:00:09]} 73. Kd5 {[%clk 0:01:09]}  a4 {[%clk 0:00:09]} 0-1


[Site "https://www.chess.com"]

[Event "Titled Tuesday Blitz October 11 Early 2022"]
[White "Drozdowski, Kacper"]
[Black "Manukyan, Sargis A."]
[WhiteFideId "1136720"]
[BlackFideId "13303970"]
[WhiteElo "2485"]
[BlackElo "2187"]
[Result "1-0"]
[Round "01"]
[TimeControl "180+1"]
[Date "2022.10.11"]
[WhiteClock "0:00:53"]
[BlackClock "0:01:54"]

1. e4 {[%clk 0:03:00]}  e6 {[%clk 0:02:59]} 2. d4 {[%clk 0:02:57]}  d5 {[%clk 0:03:00]} 3. Nd2 {[%clk 0:02:52]}  Be7 {[%clk 0:03:00]} 4. Ngf3 {[%clk 0:02:51]}  Nf6 {[%clk 0:03:00]} 5. Bd3 {[%clk 0:02:47]}  c5 {[%clk 0:02:58]} 6. e5 {[%clk 0:02:41]}  Nfd7 {[%clk 0:02:57]} 7. c3 {[%clk 0:02:42]}  Nc6 {[%clk 0:02:57]} 8. O-O {[%clk 0:02:41]}  g5 {[%clk 0:02:57]} 9. dxc5 {[%clk 0:02:40]}  g4 {[%clk 0:02:55]} 10. Nd4 {[%clk 0:02:39]}  Ndxe5 {[%clk 0:02:56]} 11. N2b3 {[%clk 0:02:21]}  a5 {[%clk 0:02:50]} 12. Re1 {[%clk 0:01:56]}  a4 {[%clk 0:02:44]} 13. Nxc6 {[%clk 0:01:51]}  Nxc6 {[%clk 0:02:44]} 14. Nd4 {[%clk 0:01:50]}  h5 {[%clk 0:02:41]} 15. Be3 {[%clk 0:01:45]}  Bd7 {[%clk 0:02:31]} 16. Nb5 {[%clk 0:01:41]}  Qb8 {[%clk 0:02:24]} 17. Qd2 {[%clk 0:01:39]}  e5 {[%clk 0:02:22]} 18. Bg5 {[%clk 0:01:12]}  f6 {[%clk 0:02:03]} 19. Bg6+ {[%clk 0:01:10]}  Kd8 {[%clk 0:01:58]} 20. Qxd5 {[%clk 0:01:06]}  fxg5 {[%clk 0:01:58]} 21. Rad1 {[%clk 0:01:04]}  Qc8 {[%clk 0:01:58]} 22. Bf5 {[%clk 0:00:58]}  Nb8 {[%clk 0:01:58]} 23. Qxe5 {[%clk 0:00:55]}  Qxc5 {[%clk 0:01:54]} 24. Qxh8+ {[%clk 0:00:53]} 1-0


[Site "https://www.chess.com"]

[Event "Titled Tuesday Blitz October 11 Early 2022"]
[White "Dubov, Daniil"]
[Black "Ilkhomi, Jaloliddin"]
[WhiteFideId "24126055"]
[BlackFideId "14700948"]
[WhiteElo "2791"]
[BlackElo "2045"]
[Result "1-0"]
[Round "01"]
[TimeControl "180+1"]
[Date "2022.10.11"]
[WhiteClock "0:00:17"]
[BlackClock "0:00:03"]

1. e4 {[%clk 0:03:00]}  e6 {[%clk 0:02:58]} 2. d4 {[%clk 0:02:59]}  d5 {[%clk 0:02:57]} 3. e5 {[%clk 0:02:59]}  c5 {[%clk 0:02:52]} 4. c3 {[%clk 0:02:59]}  Qb6 {[%clk 0:02:36]} 5. Nf3 {[%clk 0:02:49]}  Bd7 {[%clk 0:02:35]} 6. a3 {[%clk 0:02:48]}  Bb5 {[%clk 0:02:32]} 7. Bxb5+ {[%clk 0:02:47]}  Qxb5 {[%clk 0:02:32]} 8. a4 {[%clk 0:02:48]}  Qd7 {[%clk 0:02:28]} 9. O-O {[%clk 0:02:44]}  c4 {[%clk 0:02:25]} 10. b3 {[%clk 0:02:36]}  cxb3 {[%clk 0:02:23]} 11. Nbd2 {[%clk 0:02:36]}  Nc6 {[%clk 0:02:21]} 12. Nxb3 {[%clk 0:02:35]}  Nge7 {[%clk 0:02:15]} 13. Qd3 {[%clk 0:02:32]}  Ng6 {[%clk 0:02:04]} 14. h4 {[%clk 0:02:27]}  Be7 {[%clk 0:01:58]} 15. h5 {[%clk 0:02:27]}  Nh4 {[%clk 0:01:59]} 16. Nxh4 {[%clk 0:02:27]}  Bxh4 {[%clk 0:02:00]} 17. Qh3 {[%clk 0:02:14]}  Qe7 {[%clk 0:01:57]} 18. g3 {[%clk 0:02:10]}  Bg5 {[%clk 0:01:55]} 19. f4 {[%clk 0:02:05]}  Bh6 {[%clk 0:01:54]} 20. Ba3 {[%clk 0:02:04]}  Qd7 {[%clk 0:01:46]} 21. Rab1 {[%clk 0:02:02]}  b6 {[%clk 0:01:45]} 22. a5 {[%clk 0:02:02]}  g6 {[%clk 0:01:43]} 23. Bd6 {[%clk 0:01:57]}  Bf8 {[%clk 0:01:42]} 24. hxg6 {[%clk 0:01:56]}  fxg6 {[%clk 0:01:34]} 25. Bxf8 {[%clk 0:01:50]}  Kxf8 {[%clk 0:01:35]} 26. axb6 {[%clk 0:01:51]}  axb6 {[%clk 0:01:35]} 27. Nd2 {[%clk 0:01:52]}  Rb8 {[%clk 0:01:33]} 28. Nf3 {[%clk 0:01:51]}  h6 {[%clk 0:01:29]} 29. Nh4 {[%clk 0:01:46]}  Kf7 {[%clk 0:01:24]} 30. g4 {[%clk 0:01:20]}  Rhg8 {[%clk 0:00:52]} 31. Kh1 {[%clk 0:01:18]}  Ke7 {[%clk 0:00:47]} 32. f5 {[%clk 0:01:16]}  gxf5 {[%clk 0:00:39]} 33. gxf5 {[%clk 0:01:05]}  exf5 {[%clk 0:00:39]} 34. Rxf5 {[%clk 0:00:54]}  Kd8 {[%clk 0:00:38]} 35. Rbf1 {[%clk 0:00:53]}  Ne7 {[%clk 0:00:36]} 36. Rf8+ {[%clk 0:00:45]}  Kc7 {[%clk 0:00:32]} 37. Qxd7+ {[%clk 0:00:41]}  Kxd7 {[%clk 0:00:32]} 38. Rxb8 {[%clk 0:00:40]}  Rxb8 {[%clk 0:00:33]} 39. Rf7 {[%clk 0:00:40]}  Ke8 {[%clk 0:00:24]} 40. Rh7 {[%clk 0:00:33]}  Rc8 {[%clk 0:00:25]} 41. e6 {[%clk 0:00:33]}  Kf8 {[%clk 0:00:23]} 42. Nf5 {[%clk 0:00:22]}  Nxf5 {[%clk 0:00:14]} 43. Rh8+ {[%clk 0:00:22]}  Ke7 {[%clk 0:00:15]} 44. Rxc8 {[%clk 0:00:23]}  Kxe6 {[%clk 0:00:15]} 45. Rc6+ {[%clk 0:00:23]}  Kd7 {[%clk 0:00:15]} 46. Rxb6 {[%clk 0:00:23]}  Nd6 {[%clk 0:00:16]} 47. Kg2 {[%clk 0:00:21]}  Ne4 {[%clk 0:00:16]} 48. Rxh6 {[%clk 0:00:20]}  Nxc3 {[%clk 0:00:17]} 49. Kf3 {[%clk 0:00:21]}  Nb5 {[%clk 0:00:16]} 50. Ke3 {[%clk 0:00:21]}  Nd6 {[%clk 0:00:16]} 51. Kf4 {[%clk 0:00:21]}  Nc4 {[%clk 0:00:15]} 52. Ra6 {[%clk 0:00:20]}  Ke7 {[%clk 0:00:14]} 53. Kf5 {[%clk 0:00:19]}  Kd7 {[%clk 0:00:15]} 54. Kf6 {[%clk 0:00:19]}  Kc7 {[%clk 0:00:04]} 55. Ke6 {[%clk 0:00:18]}  Ne3 {[%clk 0:00:05]} 56. Ra3 {[%clk 0:00:18]}  Ng4 {[%clk 0:00:03]} 57. Rc3+ {[%clk 0:00:17]}  Kb6 {[%clk 0:00:02]} 58. Kxd5 {[%clk 0:00:16]}  Nf6+ {[%clk 0:00:03]} 59. Ke5 {[%clk 0:00:16]}  Nd7+ {[%clk 0:00:03]} 60. Kd6 {[%clk 0:00:16]}  Nf6 {[%clk 0:00:03]} 61. Rb3+ {[%clk 0:00:17]}  Ka5 {[%clk 0:00:03]} 62. d5 {[%clk 0:00:18]}  Ka4 {[%clk 0:00:03]} 63. Rb8 {[%clk 0:00:17]}  Ka5 {[%clk 0:00:03]} 64. Kc6 {[%clk 0:00:18]}  Ka6 {[%clk 0:00:03]} 65. Ra8# {[%clk 0:00:17]} 1-0


[Site "https://www.chess.com"]

[Event "Titled Tuesday Blitz October 11 Early 2022"]
[White "Duda, Jan-Krzysztof"]
[Black "Sernecki, Franciszek"]
[WhiteFideId "1170546"]
[BlackFideId "1169297"]
[WhiteElo "2779"]
[BlackElo "2209"]
[Result "1-0"]
[Round "01"]
[TimeControl "180+1"]
[Date "2022.10.11"]
[WhiteClock "0:01:29"]
[BlackClock "0:01:28"]

1. d4 {[%clk 0:03:00]}  d5 {[%clk 0:02:59]} 2. c4 {[%clk 0:03:01]}  Nc6 {[%clk 0:02:59]} 3. Nc3 {[%clk 0:02:57]}  e5 {[%clk 0:02:59]} 4. cxd5 {[%clk 0:02:50]}  exd4 {[%clk 0:03:00]} 5. dxc6 {[%clk 0:02:49]}  dxc3 {[%clk 0:03:01]} 6. Qxd8+ {[%clk 0:02:48]}  Kxd8 {[%clk 0:03:02]} 7. cxb7 {[%clk 0:02:47]}  Bxb7 {[%clk 0:03:03]} 8. bxc3 {[%clk 0:02:48]}  Be7 {[%clk 0:03:02]} 9. Nf3 {[%clk 0:02:38]}  Bf6 {[%clk 0:03:01]} 10. Bd2 {[%clk 0:02:25]}  Ne7 {[%clk 0:02:38]} 11. e3 {[%clk 0:02:16]}  Kd7 {[%clk 0:02:33]} 12. Bc4 {[%clk 0:02:14]}  Rhd8 {[%clk 0:02:22]} 13. Bxf7 {[%clk 0:02:12]}  Nf5 {[%clk 0:02:06]} 14. Bb3 {[%clk 0:02:02]}  Ke7 {[%clk 0:02:05]} 15. Rd1 {[%clk 0:01:56]}  Nd6 {[%clk 0:02:02]} 16. c4 {[%clk 0:01:47]}  c5 {[%clk 0:02:02]} 17. Ba5 {[%clk 0:01:46]}  Rdc8 {[%clk 0:01:51]} 18. O-O {[%clk 0:01:45]}  Ke6 {[%clk 0:01:44]} 19. Rd3 {[%clk 0:01:42]}  Bd8 {[%clk 0:01:40]} 20. Rfd1 {[%clk 0:01:36]}  Nf7 {[%clk 0:01:39]} 21. Bxd8 {[%clk 0:01:33]}  Rxd8 {[%clk 0:01:39]} 22. Ng5+ {[%clk 0:01:34]}  Ke7 {[%clk 0:01:28]} 23. Nxf7 {[%clk 0:01:29]} 1-0


[Site "https://www.chess.com"]

[Event "Titled Tuesday Blitz October 11 Early 2022"]
[White "Ernst, Sipke"]
[Black "Samarth, J Rao"]
[WhiteFideId "1004689"]
[BlackFideId "46652370"]
[WhiteElo "2438"]
[BlackElo "1564"]
[Result "1-0"]
[Round "01"]
[TimeControl "180+1"]
[Date "2022.10.12"]
[WhiteClock "0:00:31"]
[BlackClock "0:00:02"]

1. d4 {[%clk 0:03:00]}  d5 {[%clk 0:02:57]} 2. c4 {[%clk 0:03:00]}  e6 {[%clk 0:02:57]} 3. Nc3 {[%clk 0:02:58]}  c6 {[%clk 0:02:56]} 4. e3 {[%clk 0:02:56]}  Nf6 {[%clk 0:02:55]} 5. Nf3 {[%clk 0:02:55]}  Bd6 {[%clk 0:02:56]} 6. Qc2 {[%clk 0:02:48]}  O-O {[%clk 0:02:55]} 7. Be2 {[%clk 0:02:46]}  Nbd7 {[%clk 0:02:54]} 8. b3 {[%clk 0:02:46]}  Qe7 {[%clk 0:02:54]} 9. O-O {[%clk 0:02:43]}  b6 {[%clk 0:02:54]} 10. Bb2 {[%clk 0:02:43]}  Bb7 {[%clk 0:02:52]} 11. Rad1 {[%clk 0:02:42]}  Rfe8 {[%clk 0:02:52]} 12. Rfe1 {[%clk 0:02:42]}  a6 {[%clk 0:02:41]} 13. Bd3 {[%clk 0:02:34]}  dxc4 {[%clk 0:02:39]} 14. bxc4 {[%clk 0:02:31]}  e5 {[%clk 0:02:39]} 15. Ng5 {[%clk 0:02:21]}  exd4 {[%clk 0:02:33]} 16. Nce4 {[%clk 0:02:10]}  h6 {[%clk 0:02:03]} 17. Nxd6 {[%clk 0:02:02]}  Qxd6 {[%clk 0:02:03]} 18. Nf3 {[%clk 0:02:01]}  c5 {[%clk 0:02:01]} 19. exd4 {[%clk 0:01:54]}  Bxf3 {[%clk 0:01:55]} 20. gxf3 {[%clk 0:01:53]}  Rxe1+ {[%clk 0:01:49]} 21. Rxe1 {[%clk 0:01:53]}  cxd4 {[%clk 0:01:50]} 22. Bf1 {[%clk 0:01:42]}  Rc8 {[%clk 0:01:40]} 23. Rd1 {[%clk 0:01:42]}  Ne5 {[%clk 0:01:34]} 24. Qf5 {[%clk 0:01:40]}  Qe6 {[%clk 0:01:11]} 25. Qxe6 {[%clk 0:01:38]}  fxe6 {[%clk 0:01:04]} 26. f4 {[%clk 0:01:31]}  Nxc4 {[%clk 0:00:30]} 27. Bxd4 {[%clk 0:01:30]}  b5 {[%clk 0:00:31]} 28. a4 {[%clk 0:01:19]}  Rd8 {[%clk 0:00:30]} 29. Be2 {[%clk 0:01:11]}  Ne4 {[%clk 0:00:24]} 30. axb5 {[%clk 0:01:05]}  axb5 {[%clk 0:00:25]} 31. Kg2 {[%clk 0:01:00]}  Ned6 {[%clk 0:00:18]} 32. Bc5 {[%clk 0:00:57]}  Nb7 {[%clk 0:00:16]} 33. Rxd8+ {[%clk 0:00:53]}  Nxd8 {[%clk 0:00:17]} 34. Bf3 {[%clk 0:00:53]}  Nf7 {[%clk 0:00:11]} 35. Bc6 {[%clk 0:00:51]}  Ncd6 {[%clk 0:00:06]} 36. Bd7 {[%clk 0:00:42]}  Ne4 {[%clk 0:00:03]} 37. Bb4 {[%clk 0:00:40]}  g5 {[%clk 0:00:03]} 38. Bxe6 {[%clk 0:00:37]}  gxf4 {[%clk 0:00:04]} 39. h4 {[%clk 0:00:37]}  Kg7 {[%clk 0:00:02]} 40. Bd5 {[%clk 0:00:34]}  Nf6 {[%clk 0:00:01]} 41. Bc6 {[%clk 0:00:33]}  Ne5 {[%clk 0:00:01]} 42. Bxb5 {[%clk 0:00:33]}  Kg6 {[%clk 0:00:02]} 43. Bc3 {[%clk 0:00:32]}  Kf5 {[%clk 0:00:02]} 44. Ba4 {[%clk 0:00:32]}  h5 {[%clk 0:00:03]} 45. Bc2+ {[%clk 0:00:31]}  Ke6 {[%clk 0:00:02]} 46. f3 {[%clk 0:00:31]}  Nc4 {[%clk 0:00:02]} 47. Bb3 {[%clk 0:00:31]} 1-0


[Site "https://www.chess.com"]

[Event "Titled Tuesday Blitz October 11 Early 2022"]
[White "Fernandez Hernandez, Gerardo"]
[Black "Laohawirapap, Prin"]
[WhiteFideId "2207400"]
[BlackFideId "6205003"]
[WhiteElo "2146"]
[BlackElo "2113"]
[Result "0-1"]
[Round "01"]
[TimeControl "180+1"]
[Date "2022.10.12"]
[WhiteClock "0:00:03"]
[BlackClock "0:01:56"]

1. e4 {[%clk 0:03:00]}  c5 {[%clk 0:02:58]} 2. d3 {[%clk 0:03:00]}  Nc6 {[%clk 0:02:58]} 3. g3 {[%clk 0:03:00]}  g6 {[%clk 0:02:58]} 4. Bg2 {[%clk 0:03:01]}  Bg7 {[%clk 0:02:59]} 5. f4 {[%clk 0:03:01]}  d6 {[%clk 0:02:59]} 6. Nf3 {[%clk 0:03:02]}  e6 {[%clk 0:02:59]} 7. O-O {[%clk 0:03:01]}  Nge7 {[%clk 0:03:00]} 8. c3 {[%clk 0:03:02]}  O-O {[%clk 0:03:00]} 9. Be3 {[%clk 0:03:02]}  b6 {[%clk 0:02:59]} 10. d4 {[%clk 0:03:02]}  d5 {[%clk 0:02:59]} 11. e5 {[%clk 0:02:59]}  Nf5 {[%clk 0:02:57]} 12. Bf2 {[%clk 0:02:59]}  cxd4 {[%clk 0:02:57]} 13. cxd4 {[%clk 0:02:59]}  h5 {[%clk 0:02:57]} 14. Nc3 {[%clk 0:02:55]}  Ba6 {[%clk 0:02:52]} 15. Re1 {[%clk 0:02:54]}  Qd7 {[%clk 0:02:52]} 16. h3 {[%clk 0:02:45]}  Nb4 {[%clk 0:02:46]} 17. Bf1 {[%clk 0:02:45]}  Bxf1 {[%clk 0:02:45]} 18. Rxf1 {[%clk 0:02:43]}  Nh6 {[%clk 0:02:40]} 19. Qd2 {[%clk 0:02:17]}  Rac8 {[%clk 0:02:39]} 20. Rac1 {[%clk 0:02:11]}  Rc4 {[%clk 0:02:37]} 21. b3 {[%clk 0:02:00]}  Rc7 {[%clk 0:02:31]} 22. Na4 {[%clk 0:01:58]}  Nc6 {[%clk 0:02:31]} 23. Rc2 {[%clk 0:01:51]}  Rfc8 {[%clk 0:02:30]} 24. Rfc1 {[%clk 0:01:50]}  Ne7 {[%clk 0:02:25]} 25. Be3 {[%clk 0:01:34]}  Nc6 {[%clk 0:02:20]} 26. Kg2 {[%clk 0:01:27]}  Bf8 {[%clk 0:02:20]} 27. Nh2 {[%clk 0:01:02]}  Ba3 {[%clk 0:02:19]} 28. Rf1 {[%clk 0:01:00]}  Nb4 {[%clk 0:02:15]} 29. Rxc7 {[%clk 0:00:57]}  Rxc7 {[%clk 0:02:16]} 30. Nc3 {[%clk 0:00:47]}  Qc6 {[%clk 0:02:09]} 31. Nb1 {[%clk 0:00:40]}  Nc2 {[%clk 0:02:05]} 32. Nxa3 {[%clk 0:00:37]}  Nxa3 {[%clk 0:02:06]} 33. Rc1 {[%clk 0:00:37]}  Nc2 {[%clk 0:01:58]} 34. Bf2 {[%clk 0:00:30]}  Nf5 {[%clk 0:01:57]} 35. g4 {[%clk 0:00:24]}  Nce3+ {[%clk 0:01:55]} 36. Bxe3 {[%clk 0:00:21]}  Nxe3+ {[%clk 0:01:55]} 37. Qxe3 {[%clk 0:00:20]}  Qxc1 {[%clk 0:01:56]} 38. Nf1 {[%clk 0:00:12]}  Rc2+ {[%clk 0:01:55]} 39. Kg1 {[%clk 0:00:11]}  hxg4 {[%clk 0:01:52]} 40. hxg4 {[%clk 0:00:10]}  Qxe3+ {[%clk 0:01:52]} 41. Nxe3 {[%clk 0:00:10]}  Rxa2 {[%clk 0:01:53]} 42. Kf1 {[%clk 0:00:09]}  a5 {[%clk 0:01:52]} 43. Ke1 {[%clk 0:00:07]}  Rb2 {[%clk 0:01:52]} 44. Kd1 {[%clk 0:00:06]}  Rxb3 {[%clk 0:01:52]} 45. Kd2 {[%clk 0:00:07]}  Rxe3 {[%clk 0:01:51]} 46. Kxe3 {[%clk 0:00:05]}  b5 {[%clk 0:01:52]} 47. Kd3 {[%clk 0:00:06]}  b4 {[%clk 0:01:53]} 48. Kc2 {[%clk 0:00:05]}  a4 {[%clk 0:01:54]} 49. Kb2 {[%clk 0:00:04]}  b3 {[%clk 0:01:55]} 50. Kc3 {[%clk 0:00:03]}  Kf8 {[%clk 0:01:54]} 51. Kb2 {[%clk 0:00:02]}  Ke7 {[%clk 0:01:54]} 52. Kc3 {[%clk 0:00:02]}  Kd7 {[%clk 0:01:54]} 53. Kb2 {[%clk 0:00:03]}  Kc6 {[%clk 0:01:55]} 54. Kc3 {[%clk 0:00:03]}  Kb5 {[%clk 0:01:55]} 55. f5 {[%clk 0:00:03]}  gxf5 {[%clk 0:01:55]} 56. gxf5 {[%clk 0:00:03]}  exf5 {[%clk 0:01:56]} 0-1


[Site "https://www.chess.com"]